bitfinex-derivatives/quotes_SOLF0:USTF0_20250520
["timestamp","ask_amount","ask_price","bid_price","bid_amount"]
[1747714449543,0.03779226,168.85,168.81,0.04125746]
[1747714450546,5.95899226,168.85,168.82,5.922]
[1747714451548,0.03779226,168.85,168.83,5.9218]
[1747714451943,0.03779226,168.85,168.81,0.04125746]
[1747714452546,0.03779226,168.85,168.84,5.9214]
[1747714452947,7.30352564,168.87,168.83,60.08]
[1747714453644,13.22312564,168.9,168.86,5.9204]
[1747714454143,13.26398863,168.9,168.86,5.96055686]
[1747714455150,7.34438863,168.9,168.86,0.04015686]
[1747714455451,7.34438863,168.9,168.87,66.39628629]
[1747714455645,10.95528846,168.92,168.91,5.919]
[1747714455837,10.95528846,168.92,168.87,70.52408629]
[1747714456048,10.95528846,168.92,168.85,60.08]
[1747714456248,5.9196,168.9,168.85,66.0007]
[1747714456448,10.95528846,168.92,168.85,60.08]
[1747714456647,0.038536,168.9,168.87,0.04530524]
[1747714457348,0.038536,168.9,168.89,5.9197]
[1747714457751,0.038536,168.9,168.87,0.04530524]
[1747714458755,5.9197,168.89,168.87,0.04530524]
[1747714458944,0.038536,168.9,168.87,0.04530524]
[1747714459345,5.957936,168.9,168.87,0.04530524]
[1747714459751,0.038536,168.9,168.87,0.04530524]
[1747714460447,0.038536,168.9,168.87,5.96560524]
[1747714460650,0.038536,168.9,168.87,0.04530524]
[1747714461152,5.957836,168.9,168.87,0.04530524]
[1747714462647,0.038536,168.9,168.87,0.04530524]
[1747714463247,0.038536,168.9,168.89,5.9197]
[1747714463449,0.038536,168.9,168.89,65.9797]
[1747714464754,60.06,168.98,168.92,5.9186]
[1747714465353,5.9169,168.97,168.93,5.9182]
[1747714465560,5.9169,168.97,168.89,60.06]
[1747714465561,60.06,169.01,168.89,60.06]
[1747714465853,0.0445024,168.96,168.93,0.04063822]
[1747714466754,5.9618024,168.96,168.93,0.04063822]
[1747714467053,0.0445024,168.96,168.93,0.04063822]
[1747714468555,0.0445024,168.96,168.93,5.95883822]
[1747714468749,0.0445024,168.96,168.93,0.04063822]
[1747714468955,5.9618024,168.96,168.93,0.04063822]
[1747714470056,0.0445024,168.96,168.93,0.04063822]
[1747714470759,5.9176,168.95,168.93,0.04063822]
[1747714471053,0.0445024,168.96,168.93,0.04063822]
[1747714471251,5.9179,168.94,168.93,0.04063822]
[1747714474458,5.9192,168.91,168.85,60.04]
[1747714474656,66.35628629,168.97,168.85,60.04]
[1747714474857,5.9185,168.93,168.85,60.04]
[1747714475058,5.9185,168.93,168.89,5.9194]
[1747714475258,5.9185,168.93,168.89,5.96322518]
[1747714475259,5.96159264,168.93,168.89,5.96322518]
[1747714476460,5.9186,168.92,168.89,0.04382518]
[1747714476663,0.04309264,168.93,168.89,0.04382518]
[1747714477662,5.9187,168.92,168.89,0.04382518]
[1747714478358,0.04309264,168.93,168.89,0.04382518]
[1747714479556,5.9193,168.9,168.89,0.04382518]
[1747714480057,4.0871,168.92,168.82,571.92]
[1747714480364,5.9204,168.87,168.83,5.9215]
[1747714480864,5.96113281,168.87,168.83,5.95895297]
[1747714481164,0.04073281,168.87,168.83,5.95895297]
[1747714481565,0.04073281,168.87,168.84,5.9214]
[1747714482169,0.04073281,168.87,168.83,0.03745297]
[1747714483673,0.04073281,168.87,168.85,5.9207]
[1747714484877,0.04073281,168.87,168.86,5.9207]
[1747714487578,0.04073281,168.87,168.86,65.9607]
[1747714493089,5.9176,168.95,168.91,5.9187]
[1747714493377,5.9176,168.95,168.86,66.35628629]
[1747714493583,5.9176,168.95,168.87,1.9484]
[1747714494183,0.04552209,168.93,168.89,0.03848076]
[1747714494580,0.04552209,168.93,168.92,5.9186]
[1747714496185,0.04552209,168.93,168.91,5.9189]
[1747714497487,0.04552209,168.93,168.9,5.9193]
[1747714497682,5.96392209,168.93,168.9,5.9193]
[1747714498584,0.04552209,168.93,168.9,5.9193]
[1747714499985,0.04552209,168.93,168.91,5.919]
[1747714500582,0.04552209,168.93,168.9,5.9192]
[1747714500782,0.04552209,168.93,168.89,0.03848076]
[1747714501184,5.9189,168.92,168.89,0.03848076]
[1747714501388,0.04552209,168.93,168.89,0.03848076]
[1747714501688,5.9193,168.9,168.89,0.03848076]
[1747714501888,62.0218,168.92,168.82,60.04]
[1747714502188,2.0413,168.91,168.79,62.0836]
[1747714502389,5.9211,168.85,168.81,5.9224]
[1747714502888,5.96334327,168.85,168.81,5.96429434]
[1747714503389,0.04224327,168.85,168.81,5.96429434]
[1747714503585,0.04224327,168.85,168.81,0.04189434]
[1747714504591,5.9215,168.84,168.81,0.04189434]
[1747714505289,5.96334327,168.85,168.81,5.96429434]
[1747714505587,0.04224327,168.85,168.81,5.96429434]
[1747714505787,0.04224327,168.85,168.81,0.04189434]
[1747714506787,0.04224327,168.85,168.82,5.922]
[1747714506990,0.04224327,168.85,168.81,0.04189434]
[1747714507590,5.96344327,168.85,168.81,0.04189434]
[1747714508791,0.04224327,168.85,168.81,5.96419434]
[1747714509089,0.04224327,168.85,168.81,0.04189434]
[1747714509387,0.04224327,168.85,168.82,5.922]
[1747714509986,0.04224327,168.85,168.81,5.96429434]
[1747714510291,0.04224327,168.85,168.81,0.04189434]
[1747714510988,5.96334327,168.85,168.81,0.04189434]
[1747714511886,5.96334327,168.85,168.81,5.96409434]
[1747714512090,5.9215,168.84,168.81,0.04189434]
[1747714512388,0.04224327,168.85,168.81,0.04189434]
[1747714512590,5.9218,168.83,168.81,0.04189434]
[1747714513986,0.04224327,168.85,168.81,0.04189434]
[1747714513987,5.9221,168.82,168.81,0.04189434]
[1747714514690,5.9221,168.82,168.76,60.06]
[1747714514691,5.9232,168.79,168.73,62.0941]
[1747714514892,65.9741,168.84,168.73,62.0941]
[1747714515087,6.31628629,168.9,168.76,6.31628629]
[1747714515392,60.06,168.9,168.79,6.31628629]
[1747714515589,5.9212,168.85,168.83,0.043764]
[1747714515787,0.04291443,168.86,168.83,0.043764]
[1747714516094,5.9211,168.85,168.83,0.043764]
[1747714516298,60.10291443,168.86,168.83,0.043764]
[1747714516597,66.02391443,168.86,168.83,0.043764]
[1747714517791,5.9211,168.85,168.83,0.043764]
[1747714517991,60.10291443,168.86,168.83,0.043764]
[1747714519598,5.9214,168.84,168.83,0.043764]
[1747714523497,0.0437,168.83,168.75,5.9245]
[1747714523697,6.31628629,168.84,168.74,60.14]
[1747714523894,60.14,168.83,168.74,66.0649]
[1747714524097,62.2037,168.83,168.74,66.0649]
[1747714524295,5.9235,168.79,168.74,66.0649]
[1747714524595,0.03837645,168.78,168.75,0.04094511]
[1747714527496,5.924,168.77,168.75,0.04094511]
[1747714527699,0.03837645,168.78,168.75,0.04094511]
[1747714530499,5.96217645,168.78,168.75,0.04094511]
[1747714530803,0.03837645,168.78,168.75,0.04094511]
[1747714531903,5.9239,168.77,168.75,0.04094511]
[1747714532201,0.03837645,168.78,168.75,0.04094511]
[1747714532394,5.9239,168.77,168.75,0.04094511]
[1747714533603,5.9242,168.76,168.75,0.04094511]
[1747714533901,0.03837645,168.78,168.5,17.7992]
[1747714533902,6.31628629,168.77,168.64,60.16]
[1747714534198,5.9263,168.71,168.66,5.9277]
[1747714534398,60.16,168.72,168.64,60.16]
[1747714534896,0.03967181,168.7,168.66,0.04482857]
[1747714535401,5.96637181,168.7,168.66,0.04482857]
[1747714539806,0.03967181,168.7,168.66,5.97242857]
[1747714540808,0.03967181,168.7,168.67,5.9274]
[1747714542007,0.03967181,168.7,168.68,5.9268]
[1747714542307,0.03967181,168.7,168.66,0.04482857]
[1747714542506,0.03967181,168.7,168.68,5.9269]
[1747714543807,0.03967181,168.7,168.69,5.9267]
[1747714544705,62.0948,168.78,168.68,64.0518]
[1747714545306,60.18,168.78,168.69,6.31628629]
[1747714545510,60.18,168.81,168.69,6.31628629]
[1747714545707,0.04351375,168.78,168.74,5.96706376]
[1747714545908,0.04351375,168.78,168.74,0.04236376]
[1747714546307,0.04351375,168.78,168.74,5.96706376]
[1747714546608,5.96721375,168.78,168.74,0.04236376]
[1747714546903,0.04351375,168.78,168.74,5.96716376]
[1747714547108,5.96711375,168.78,168.74,5.96716376]
[1747714547305,0.04351375,168.78,168.74,0.04236376]
[1747714547505,60.18,168.77,168.74,0.04236376]
[1747714548015,5.9246,168.75,168.74,0.04236376]
[1747714549212,5.9243,168.76,168.74,0.04236376]
[1747714550410,60.18,168.77,168.74,0.04236376]
[1747714551011,66.1039,168.77,168.74,0.04236376]
[1747714551211,60.18,168.77,168.74,0.04236376]
[1747714552310,5.9246,168.75,168.74,0.04236376]
[1747714552510,60.18,168.77,168.74,0.04236376]
[1747714553504,66.49628629,168.77,168.74,0.04236376]
[1747714553808,72.67038629,168.77,168.74,0.04236376]
[1747714554202,5.9246,168.75,168.74,0.04236376]
[1747714556618,5.9243,168.76,168.74,0.04236376]
[1747714557517,66.1039,168.77,168.74,0.04236376]
[1747714557715,60.18,168.77,168.74,0.04236376]
[1747714558316,66.104,168.77,168.74,0.04236376]
[1747714560311,5.96711375,168.78,168.74,5.96716376]
[1747714560918,5.924,168.77,168.74,0.04236376]
[1747714561119,0.04351375,168.78,168.74,0.04236376]
[1747714561616,5.9241,168.77,168.74,0.04236376]
[1747714562322,5.96711375,168.78,168.74,0.04236376]
[1747714562824,5.9239,168.77,168.74,0.04236376]
[1747714564128,0.04351375,168.78,168.74,0.04236376]
[1747714564421,511.98,168.86,168.74,0.04236376]
[1747714564422,60.98,168.84,168.74,61.02236376]
[1747714564622,5.9219,168.83,168.78,5.9233]
[1747714564822,60.98,168.84,168.78,5.9233]
[1747714565022,60.98,168.84,168.75,4.0191]
[1747714565225,5.9229,168.8,168.76,5.9241]
[1747714565424,5.96504753,168.8,168.76,5.9653548]
[1747714566020,5.9232,168.79,168.76,0.0412548]
[1747714566523,0.04214753,168.8,168.76,0.0412548]
[1747714567623,5.96504753,168.8,168.76,5.9652548]
[1747714567826,0.04214753,168.8,168.76,0.0412548]
[1747714569023,0.04214753,168.8,168.79,5.9232]
[1747714574930,0.04214753,168.8,168.78,5.9234]
[1747714576428,0.04214753,168.8,168.76,2.0254548]
[1747714576429,0.04214753,168.8,168.76,0.0412548]
[1747714576923,5.9236,168.78,168.76,0.0412548]
[1747714577128,0.04214753,168.8,168.76,0.0412548]
[1747714577730,5.96504753,168.8,168.76,5.9654548]
[1747714577930,0.04214753,168.8,168.76,5.9654548]
[1747714578231,0.04214753,168.8,168.76,0.0412548]
[1747714579532,0.04214753,168.8,168.79,5.9232]
[1747714580028,0.04214753,168.8,168.78,5.9234]
[1747714580627,0.04214753,168.8,168.76,7.8821548]
[1747714580831,0.04214753,168.8,168.76,0.0412548]
[1747714581430,5.9235,168.79,168.76,0.0412548]
[1747714582030,5.96504753,168.8,168.76,0.0412548]
[1747714583536,5.96504753,168.8,168.76,5.9652548]
[1747714583843,0.04214753,168.8,168.76,5.9652548]
[1747714584048,0.04214753,168.8,168.76,0.0412548]
[1747714584251,0.04214753,168.8,168.77,5.9238]
[1747714585049,0.04214753,168.8,168.78,5.9235]
[1747714586640,0.04214753,168.8,168.76,0.0412548]
[1747714586641,0.04214753,168.8,168.79,5.9232]
[1747714588047,64.4563,168.88,168.83,5.9215]
[1747714588347,62.4803,168.88,168.83,5.9215]
[1747714588744,68.4006,168.88,168.83,5.9215]
[1747714588945,68.4006,168.88,168.84,5.9213]
[1747714589148,68.44164681,168.88,168.84,0.04176963]
[1747714589346,60.46104681,168.88,168.84,0.04176963]
[1747714589546,60.46104681,168.88,168.85,5.9208]
[1747714589746,0.04104681,168.88,168.85,5.9208]
[1747714590954,0.04104681,168.88,168.84,5.96316963]
[1747714591348,5.96114681,168.88,168.84,5.96316963]
[1747714591551,0.04104681,168.88,168.84,0.04176963]
[1747714591952,0.04104681,168.88,168.87,5.9204]
[1747714594250,60.4,168.97,168.85,6.31628629]
[1747714594446,66.3665,169.0,168.88,6.31628629]
[1747714594657,66.3665,169.0,168.89,60.4]
[1747714594849,5.917,168.97,168.89,60.4]
[1747714595251,0.04462978,168.95,168.91,0.03921839]
[1747714595653,0.04462978,168.95,168.92,5.9184]
[1747714596248,0.04462978,168.95,168.93,5.9182]
[1747714597753,0.04462978,168.95,168.94,5.9179]
[1747714605554,2.0653,169.07,168.94,12.23628629]
[1747714605763,5.9145,169.04,168.97,6.31628629]
[1747714605951,2.0653,169.07,169.0,5.9158]
[1747714606347,5.9144,169.05,169.02,0.04364817]
[1747714606555,0.04485625,169.05,169.02,0.04364817]
[1747714607057,5.9148,169.03,169.02,0.04364817]
[1747714607258,0.04485625,169.05,169.02,0.04364817]
[1747714608563,5.9145,169.04,169.02,0.04364817]
[1747714608859,0.04485625,169.05,169.02,0.04364817]
[1747714609056,5.95915625,169.05,169.02,0.04364817]
[1747714609857,0.04485625,169.05,169.02,5.95874817]
[1747714610058,0.04485625,169.05,169.02,0.04364817]
[1747714612358,5.95925625,169.05,169.02,0.04364817]
[1747714612857,0.04485625,169.05,169.02,0.04364817]
[1747714613763,5.95895625,169.05,169.02,0.04364817]
[1747714614058,0.04485625,169.05,169.02,0.04364817]
[1747714614760,0.04485625,169.05,169.02,5.95864817]
[1747714615062,0.04485625,169.05,169.02,0.04364817]
[1747714615256,5.9144,169.04,169.02,0.04364817]
[1747714615456,0.04485625,169.05,169.02,0.04364817]
[1747714616657,5.9148,169.03,169.02,0.04364817]
[1747714620461,0.04485625,169.05,168.91,1.9016]
[1747714620462,5.9161,169.0,168.94,6.31628629]
[1747714620661,60.16,169.04,168.95,5.9173]
[1747714620662,66.1961,169.04,168.95,5.9173]
[1747714620862,66.1961,169.04,168.94,60.16]
[1747714621464,0.03841304,169.01,168.97,0.03913543]
[1747714622062,5.9164,168.99,168.97,0.03913543]
[1747714622456,0.03841304,169.01,168.97,0.03913543]
[1747714623559,5.9165,168.98,168.97,0.03913543]
[1747714624465,0.03841304,169.01,168.97,0.03913543]
[1747714625065,5.9159,169.0,168.97,0.03913543]
[1747714625364,0.03841304,169.01,168.97,0.03913543]
[1747714625760,0.03841304,169.01,168.99,5.916]
[1747714626263,0.03841304,169.01,168.97,0.03913543]
[1747714629060,5.95391304,169.01,168.97,5.95593543]
[1747714630360,5.9159,169.0,168.97,0.03913543]
[1747714630561,0.03841304,169.01,168.97,0.03913543]
[1747714630967,5.9159,169.0,168.97,0.03913543]
[1747714631665,0.03841304,169.01,168.97,0.03913543]
[1747714632065,0.03841304,169.01,168.99,5.9161]
[1747714632367,0.03841304,169.01,168.97,0.03913543]
[1747714632567,0.03841304,169.01,168.98,5.9165]
[1747714632767,0.03841304,169.01,168.97,0.03913543]
[1747714633471,5.9159,169.0,168.97,0.03913543]
[1747714634470,5.9162,168.99,168.97,0.03913543]
[1747714634671,0.03841304,169.01,168.97,0.03913543]
[1747714635871,5.9162,169.0,168.97,0.03913543]
[1747714636273,0.03841304,169.01,168.97,0.03913543]
[1747714636572,5.9159,169.0,168.97,0.03913543]
[1747714636773,0.03841304,169.01,168.97,0.03913543]
[1747714637174,5.9159,169.0,168.97,0.03913543]
[1747714637977,5.9162,168.99,168.97,0.03913543]
[1747714638875,5.9165,168.98,168.97,0.03913543]
[1747714640478,5.9177,168.95,168.91,5.919]
[1747714640978,5.9177,168.95,168.9,5.9192]
[1747714641277,5.9614894,168.94,168.91,0.04050937]
[1747714644576,0.0434894,168.94,168.91,0.04050937]
[1747714644780,0.0434894,168.94,168.92,66.49628629]
[1747714644978,62.1166,169.01,168.92,66.49628629]
[1747714645286,68.0323,169.01,168.96,5.917]
[1747714645787,68.0323,169.01,168.97,5.9167]
[1747714645983,66.13698587,169.01,168.97,5.9548028]
[1747714646684,11.09093488,168.99,168.97,5.9548028]
[1747714647290,11.09093488,168.99,168.98,5.9165]
[1747714647988,0.04128587,169.01,168.98,5.9165]
[1747714649091,0.04128587,169.01,169.0,5.9158]
[1747714651087,0.04128587,169.01,168.97,0.0381028]
[1747714651791,0.04128587,169.01,168.97,5.9547028]
[1747714652293,0.04128587,169.01,168.98,5.9165]
[1747714652589,0.04128587,169.01,168.97,0.0381028]
[1747714652991,0.04128587,169.01,168.99,5.9159]
[1747714653592,0.04128587,169.01,169.0,5.9158]
[1747714654085,0.04128587,169.01,168.97,0.0381028]
[1747714654286,0.04128587,169.01,168.99,5.9161]
[1747714656094,0.04128587,169.01,168.98,5.9164]
[1747714656391,0.04128587,169.01,168.97,0.0381028]
[1747714657589,0.04128587,169.01,168.99,5.9161]
[1747714658094,0.04128587,169.01,169.0,5.9158]
[1747714660695,5.9134,169.07,169.03,5.9145]
[1747714661093,5.9134,169.07,169.02,5.915]
[1747714661491,5.9134,169.07,169.0,60.18]
[1747714661791,5.95301285,169.06,169.03,0.03828745]
[1747714662096,0.03931285,169.06,169.03,0.03828745]
[1747714663495,5.95331285,169.06,169.03,0.03828745]
[1747714663701,0.03931285,169.06,169.03,0.03828745]
[1747714664198,5.9144,169.04,169.03,0.03828745]
[1747714665494,5.9142,169.05,169.03,0.03828745]
[1747714666295,5.9144,169.04,169.03,0.03828745]
[1747714666506,0.03931285,169.06,169.03,0.03828745]
[1747714666908,5.9143,169.05,169.03,0.03828745]
[1747714667407,0.03931285,169.06,169.03,0.03828745]
[1747714668297,5.95311285,169.06,169.03,0.03828745]
[1747714668900,0.03931285,169.06,169.03,5.95308745]
[1747714669200,0.03931285,169.06,169.03,0.03828745]
[1747714670300,5.95331285,169.06,169.03,0.03828745]
[1747714671002,5.9141,169.05,169.03,0.03828745]
[1747714671503,0.03931285,169.06,169.03,0.03828745]
[1747714672302,5.95331285,169.06,169.03,0.03828745]
[1747714672600,0.03931285,169.06,169.03,0.03828745]
[1747714674499,0.03931285,169.06,169.04,5.9142]
[1747714674694,0.03931285,169.06,169.03,0.03828745]
[1747714675801,5.9141,169.05,169.03,0.03828745]
[1747714676004,0.03931285,169.06,169.03,0.03828745]
[1747714677404,5.95301285,169.06,169.03,0.03828745]
[1747714679305,0.03931285,169.06,169.03,5.95298745]
[1747714679505,0.03931285,169.06,169.03,0.03828745]
[1747714679905,0.03931285,169.06,169.03,5.95308745]
[1747714681201,0.03931285,169.06,169.04,5.9144]
[1747714682811,0.03931285,169.06,169.03,0.03828745]
[1747714683510,0.03931285,169.06,169.04,5.9143]
[1747714683909,0.03931285,169.06,169.03,0.03828745]
[1747714684309,0.03931285,169.06,169.03,5.95298745]
[1747714684713,0.03931285,169.06,169.03,0.03828745]
[1747714684918,0.03931285,169.06,169.04,5.9144]
[1747714685510,0.03931285,169.06,169.03,5.95288745]
[1747714686512,5.95301285,169.06,169.03,0.03828745]
[1747714687014,0.03931285,169.06,169.03,0.03828745]
[1747714687209,5.9141,169.05,169.03,0.03828745]
[1747714688409,0.03931285,169.06,169.03,0.03828745]
[1747714690708,5.95301285,169.06,169.03,0.03828745]
[1747714697522,0.03931285,169.06,169.03,0.03828745]
[1747714698222,5.9141,169.05,169.03,0.03828745]
[1747714698420,0.03931285,169.06,169.03,0.03828745]
[1747714700623,0.03931285,169.06,169.04,5.9144]
[1747714701320,0.03931285,169.06,169.03,0.03828745]
[1747714701724,5.95331285,169.06,169.03,0.03828745]
[1747714702223,5.9141,169.05,169.03,0.03828745]
[1747714702624,0.03931285,169.06,169.03,0.03828745]
[1747714702822,5.9144,169.04,169.03,0.03828745]
[1747714707024,5.92,169.04,168.91,1.8895]
[1747714707222,6.30199186,169.02,168.91,1.8895]
[1747714707424,60.06,169.01,168.87,6.30199186]
[1747714707625,6.30199186,168.99,168.86,5.7913]
[1747714707927,60.06,169.01,168.86,5.7913]
[1747714708127,0.03792368,168.95,168.92,0.0446263]
[1747714708326,60.06,168.94,168.92,0.0446263]
[1747714709441,5.9183,168.93,168.92,0.0446263]
[1747714709633,60.06,168.94,168.8,6.30199186]
[1747714709930,5.9196,168.9,168.84,5.9212]
[1747714710125,60.06,168.89,168.84,5.9212]
[1747714710427,65.9799,168.89,168.83,5.9217]
[1747714710628,0.04095693,168.88,168.84,0.04018509]
[1747714711630,0.04095693,168.88,168.84,5.96148509]
[1747714711931,0.04095693,168.88,168.84,0.04018509]
[1747714713629,0.04095693,168.88,168.87,5.9204]
[1747714717134,5.693e-05,168.88,168.87,5.9204]
[1747714719129,5.693e-05,168.88,168.84,0.04018509]
[1747714720234,5.693e-05,168.88,168.85,5.921]
[1747714721334,5.693e-05,168.88,168.84,0.04018509]
[1747714721933,5.9211,168.85,168.84,0.04018509]
[1747714722133,5.9211,168.85,168.75,5.7966]
[1747714722134,60.1,168.85,168.75,65.8966]
[1747714722327,66.40199186,168.85,168.75,5.7966]
[1747714722532,66.40199186,168.85,168.76,5.9239]
[1747714722732,1.9184,168.84,168.76,5.9239]
[1747714723036,0.0427295,168.82,168.78,0.0375653]
[1747714723229,60.1,168.81,168.78,0.0375653]
[1747714724833,66.0225,168.81,168.78,0.0375653]
[1747714725245,60.1,168.81,168.78,0.0375653]
[1747714725535,5.9232,168.79,168.78,0.0375653]
[1747714725739,5.9232,168.79,168.73,5.9252]
[1747714726239,5.9236,168.78,168.71,5.9256]
[1747714726439,60.12,168.77,168.7,3.8667]
[1747714726639,0.0381716,168.75,168.72,0.04238569]
[1747714728141,0.0381716,168.75,168.74,5.9249]
[1747714729441,0.0381716,168.75,168.73,5.9252]
[1747714729639,0.0381716,168.75,168.72,0.04238569]
[1747714730041,0.0381716,168.75,168.73,5.9253]
[1747714730242,0.0381716,168.75,168.72,0.04238569]
[1747714732542,0.0381716,168.75,168.74,5.9249]
[1747714740347,0.0381716,168.75,168.73,5.9252]
[1747714740537,0.0381716,168.75,168.72,0.04238569]
[1747714742342,0.0381716,168.75,168.74,5.9249]
[1747714746749,0.0381716,168.75,168.73,5.9253]
[1747714747846,0.0381716,168.75,168.74,5.9249]
[1747714748547,60.34,168.81,168.74,6.30199186]
[1747714748846,5.9229,168.8,168.74,6.30199186]
[1747714749048,5.9229,168.8,168.74,8.25509186]
[1747714749249,5.9229,168.8,168.76,5.9242]
[1747714749552,5.96076101,168.8,168.76,5.96478964]
[1747714750453,5.9233,168.79,168.76,0.04058964]
[1747714750650,0.03786101,168.8,168.76,0.04058964]
[1747714751251,5.96096101,168.8,168.76,5.96458964]
[1747714751552,0.03786101,168.8,168.76,0.04058964]
[1747714751745,0.03786101,168.8,168.79,5.9232]
[1747714751946,60.34,168.86,168.78,6.30199186]
[1747714752853,0.03890973,168.84,168.8,0.04158079]
[1747714753653,0.03890973,168.84,168.81,5.9224]
[1747714754151,0.03890973,168.84,168.8,0.04158079]
[1747714754353,0.03890973,168.84,168.81,5.9224]
[1747714754551,0.03890973,168.84,168.8,0.04158079]
[1747714755052,0.03890973,168.84,168.81,5.9224]
[1747714756254,0.03890973,168.84,168.8,0.04158079]
[1747714756855,0.03890973,168.84,168.82,5.9219]
[1747714758257,0.03890973,168.84,168.83,5.9218]
[1747714758556,0.03890973,168.84,168.8,0.04158079]
[1747714759557,0.03890973,168.84,168.82,5.922]
[1747714759959,0.03890973,168.84,168.8,0.04158079]
[1747714760160,0.03890973,168.84,168.81,5.9222]
[1747714760461,0.03890973,168.84,168.8,0.04158079]
[1747714761257,5.922,168.83,168.8,0.04158079]
[1747714761564,0.03890973,168.84,168.8,0.04158079]
[1747714761565,60.34,168.82,168.8,0.04158079]
[1747714761952,5.9225,168.81,168.8,0.04158079]
[1747714762564,60.34,168.82,168.8,0.04158079]
[1747714763075,66.2622,168.82,168.8,0.04158079]
[1747714767268,60.34,168.82,168.8,0.04158079]
[1747714767968,60.34,168.82,168.81,5.9225]
[1747714768367,60.34,168.82,168.8,5.96428079]
[1747714768964,0.03890973,168.84,168.8,0.04158079]
[1747714770169,0.03890973,168.84,168.83,5.9218]
[1747714773264,5.919,168.91,168.87,5.9201]
[1747714773466,60.12,168.91,168.81,8.31139186]
[1747714774172,66.039,168.91,168.87,5.9201]
[1747714774373,66.08134824,168.91,168.87,5.96154179]
[1747714774574,5.9194,168.9,168.87,0.04144179]
[1747714776475,66.08144824,168.91,168.87,5.96174179]
[1747714777377,5.9194,168.9,168.87,5.96174179]
[1747714777882,60.16234824,168.91,168.9,5.9193]
[1747714778172,60.16234824,168.91,168.87,0.04144179]
[1747714778370,60.16234824,168.91,168.89,5.9196]
[1747714778575,0.04234824,168.91,168.89,5.9196]
[1747714780780,0.04234824,168.91,168.88,5.92]
[1747714781280,0.04234824,168.91,168.87,0.04144179]
[1747714781475,0.04234824,168.91,168.88,5.9199]
[1747714782177,0.04234824,168.91,168.89,5.9197]
[1747714782979,0.04234824,168.91,168.9,5.9193]
[1747714787278,4.824e-05,168.91,168.9,12.22129186]
[1747714788587,60.1,169.03,168.97,5.9166]
[1747714788786,60.1,169.02,168.97,5.9166]
[1747714788980,5.9158,169.01,168.97,5.9166]
[1747714789180,60.1,169.02,168.91,1.9928]
[1747714789482,5.9171,168.97,168.95,0.04000407]
[1747714790286,5.9172,168.96,168.95,0.04000407]
[1747714791286,5.917,168.97,168.95,0.04000407]
[1747714795289,5.9172,168.96,168.95,0.04000407]
[1747714796286,5.917,168.97,168.95,0.04000407]
[1747714797789,5.9172,168.96,168.95,0.04000407]
[1747714803392,5.9172,168.96,168.95,4.07e-06]
[1747714803591,5.9191,168.91,168.87,5.9203]
[1747714804495,5.96152037,168.91,168.87,5.96393452]
[1747714804898,0.04242037,168.91,168.88,5.9199]
[1747714807297,0.04242037,168.91,168.87,0.04363452]
[1747714808701,5.9193,168.9,168.87,0.04363452]
[1747714811301,5.92,168.88,168.87,0.04363452]
[1747714812007,5.9211,168.85,168.81,5.9225]
[1747714813004,5.96215176,168.85,168.81,5.96150738]
[1747714813203,5.9216,168.84,168.81,0.03900738]
[1747714813403,0.04105176,168.85,168.81,0.03900738]
[1747714813603,60.14105176,168.85,168.81,0.03900738]
[1747714813799,5.9215,168.84,168.81,0.03900738]
[1747714814503,60.14105176,168.85,168.81,0.03900738]
[1747714815208,5.9221,168.82,168.81,0.03900738]
[1747714816309,5.9219,168.83,168.81,0.03900738]
[1747714818009,5.9221,168.82,168.81,0.03900738]
[1747714818704,5.9219,168.83,168.81,0.03900738]
[1747714823215,62.04665176,168.85,168.81,0.03900738]
[1747714823415,60.14105176,168.85,168.81,0.03900738]
[1747714823811,60.14105176,168.85,168.83,5.9218]
[1747714824515,0.04105176,168.85,168.84,5.9214]
[1747714825414,7.36135188,168.89,168.88,5.92]
[1747714826017,11.04202782,168.91,168.9,5.9193]
[1747714826217,0.04378659,168.92,168.89,0.03921989]
[1747714826914,0.04378659,168.92,168.91,5.919]
[1747714827119,60.1,168.96,168.89,0.03921989]
[1747714827312,60.1,168.99,168.9,60.1]
[1747714827623,66.0162,168.99,168.9,60.1]
[1747714828018,0.04353212,168.96,168.94,5.9178]
[1747714829515,0.04353212,168.96,168.95,5.9176]
[1747714834115,3.212e-05,168.96,168.95,5.9176]
[1747714834311,3.212e-05,168.96,168.95,9.8197]
[1747714834614,5.9141,169.05,168.95,3.9021]
[1747714834809,571.88,169.06,168.95,3.9021]